Cogmind - Beta 11 X9 @@@ ROGUE MODE // 2021.12.28 @ 12:10:54 // Winter2021/Sauler Player: aoemica Result: Heading to fleet! Performance ------------- Evolutions (9) 4500 Regions Visited (19) 3800 Robots Destroyed (18) 90 Value Destroyed (658) 658 Prototype IDs (24) 480 Alien Tech Used (4) 800 Bonus (19517) 19517 TOTAL SCORE: 29845 Bonus ------- Pacifist 2680 Triggered Max Security 3000 High Alert Combat Kills 197 Follower Combat Kills 432 Entered DSFs 1000 Aligned with FarCom 300 Used Core Reset Matrix 3000 Win 3000 Win Speed 5932 Friendly Fire -24 Cogmind --------- Core Integrity 1600/1600 Matter 300/300 Energy 286/290 System Corruption 3% Temperature Cool (8) Movement Flying (19) Location To Fleet Rendezvous Parts ------- > --- POWER (3) -------- Micro Fission Core Light Antimatter Reactor Light Antimatter Reactor > --- PROPULSION (11) -- VTOL Module Xenon Bombardment Thruster Xenon Bombardment Thruster Field Propulsion Array Q-thruster Q-thruster Impulse Thruster Array Impulse Thruster Array > --- UTILITY (9) ------ Advanced Heat Sink Advanced Heat Sink Advanced Heat Sink Advanced Coolant Injector Medium Storage Unit Advanced Transmission Jammer Improved Core Shielding Hardened Medium Armor Plating > --- WEAPON (2) ------- Sigix Broadsword > --- INVENTORY (10) --- Q-thruster Impulse Thruster Array Impulse Thruster Array Advanced Heat Sink Advanced Signal Interpreter Integrity Redistributor Heavy Neutron Cannon Fusion Bomb Launcher Peak State ------------ > --- POWER ------------ Micro Fission Core Light Antimatter Reactor Light Antimatter Reactor > --- PROPULSION ------- VTOL Module Xenon Bombardment Thruster Xenon Bombardment Thruster Field Propulsion Array Q-thruster Q-thruster Impulse Thruster Array Impulse Thruster Array > --- UTILITY ---------- Advanced Heat Sink Advanced Heat Sink Advanced Heat Sink Advanced Coolant Injector Medium Storage Unit Advanced Transmission Jammer Improved Core Shielding Hardened Medium Armor Plating > --- WEAPON ----------- Sigix Broadsword > --- INVENTORY -------- Impulse Thruster Array Impulse Thruster Array Advanced Heat Sink Advanced Signal Interpreter Integrity Redistributor Heavy Neutron Cannon Fusion Bomb Launcher Portable AFG [Rating: 166] Favorites ----------- Power Light Antimatter Reactor Engine Light Ion Engine Power Core Micro Fission Core Reactor Light Antimatter Reactor Propulsion Field Propulsion Array Treads Light Treads Leg Aluminum Leg Hover Unit Airjet Flight Unit Field Propulsion Array Utility Advanced Heat Sink Device Advanced Heat Sink Storage Medium Storage Unit Processor Improved Melee Analysis Suite Hackware Hacking Suite Protection Hardened Medium Armor Plating Weapon Assault Rifle Energy Gun EM Pulse Gun Energy Cannon Plasma Cannon Ballistic Gun Assault Rifle Slashing Weapon Sigix Broadsword Build | -11 -10 -10 -10 -9 -8 -7 -7 -6 -5 -5 -4 -4 -3 -3 -2 -2 -2 -1 -1 ------- Run | Scr Mat Min Exi Min Mat Fac DSF Fac Fac DSF Fac Ext Res Qua Res Tes Sec Acc Com Slots Evolved 18 | . . . . . 4 2 . 2 2 . 2 . 2 . 2 . . 2 . Power 2 | . . . . . . . . . . . 1 . . . . . . 1 . Propulsion 9 | . . . . . 4 1 . 1 . . 1 . 1 . 1 . . . . Utility 7 | . . . . . . 1 . 1 2 . . . 1 . 1 . . 1 . Weapon . | . . . . . . . . . . . . . . . . . . . . Parts Attached 67 | 1 2 . . . 3 . 1 8 . 6 9 10 7 5 5 1 4 2 3 Power 5 | . . . . . . . . . . . 2 1 . . . 1 . 1 . Engine 1 | . . . . . . . . . . . 1 . . . . . . . . Core 1 | . . . . . . . . . . . . . . . . 1 . . . Reactor 3 | . . . . . . . . . . . 1 1 . . . . . 1 . Propulsion 32 | . 2 . . . 3 . . 3 . 4 2 5 3 3 2 . 4 . 1 Treads 4 | . 2 . . . 2 . . . . . . . . . . . . . . Leg . | . . . . . . . . . . . . . . . . . . . . Wheel . | . . . . . . . . . . . . . . . . . . . . Hover 3 | . . . . . 1 . . 1 . . . 1 . . . . . . . Flight 25 | . . . . . . . . 2 . 4 2 4 3 3 2 . 4 . 1 Utility 21 | . . . . . . . 1 4 . 1 4 4 2 1 1 . . 1 2 Device 11 | . . . . . . . . 1 . . 2 3 2 1 . . . 1 1 Storage 1 | . . . . . . . . . . . . 1 . . . . . . . Processor 4 | . . . . . . . . 2 . . 1 . . . 1 . . . . Hackware 3 | . . . . . . . 1 1 . 1 . . . . . . . . . Protection 2 | . . . . . . . . . . . 1 . . . . . . . 1 Artifact . | . . . . . . . . . . . . . . . . . . . . Weapon 9 | 1 . . . . . . . 1 . 1 1 . 2 1 2 . . . . Energy Gun . | . . . . . . . . . . . . . . . . . . . . Energy Cannon 3 | . . . . . . . . . . 1 . . 1 . 1 . . . . Ballistic Gun 3 | 1 . . . . . . . . . . 1 . 1 . . . . . . Ballistic Cannon . | . . . . . . . . . . . . . . . . . . . . Launcher . | . . . . . . . . . . . . . . . . . . . . Special Weapon . | . . . . . . . . . . . . . . . . . . . . Impact Weapon . | . . . . . . . . . . . . . . . . . . . . Slashing Weapon 3 | . . . . . . . . 1 . . . . . 1 1 . . . . Piercing Weapon . | . . . . . . . . . . . . . . . . . . . . Special Melee Weapon . | . . . . . . . . . . . . . . . . . . . . Unidentified Prototypes 3 | . . . . . . . . 1 . . . . . 2 . . . . . Parts Lost 17 | . . . . . . . 1 . . 6 1 2 . 2 . 1 3 . 1 Power 2 | . . . . . . . . . . . 1 . . . . 1 . . . Propulsion 11 | . . . . . . . 1 . . 5 . 1 . 2 . . 1 . 1 Utility 3 | . . . . . . . . . . . . 1 . . . . 2 . . Weapon 1 | . . . . . . . . . . 1 . . . . . . . . . Highest Loss Streak 6 | . . . . . . . 1 . . 6 1 1 . 1 . 1 1 . 1 Average Slot Usage (%) 65 | . 42 42 42 42 46 46 47 38 52 41 61 82 89 81 78 77 72 72 73 Reactor 5 | . . . . . . . . . . . 1 9 9 9 8 5 4 8 8 Treads 8 | . 28 28 28 28 36 30 26 20 17 6 . . . . . . . . . Hover 1 | . . . . . 1 7 7 6 11 4 . . . . . . . . . Flight 21 | . . . . . . . . . . 8 26 30 37 33 34 34 33 32 31 Device 10 | . . . . . . . . . . . 4 15 19 19 17 17 15 16 17 Storage 2 | . . . . . . . . . . . . 2 4 4 4 4 4 4 4 Processor 1 | . . . . . . . . . 11 11 12 1 . . . . . . . Hackware 2 | . . . . . . . 5 3 5 6 5 5 4 4 4 4 . . . Protection 2 | . . . . . . . . . . . 3 5 4 4 4 4 4 4 4 Energy Cannon 1 | . . . . . . . . . . . 5 5 4 1 . . . . . Ballistic Gun 4 | . 14 14 14 14 9 7 7 4 . . . 5 4 1 . . . . . Slashing Weapon 1 | . . . . . . . . 1 5 2 . . . 2 4 4 4 4 4 Naked Turns . | . . . . . . . . . . . . . . . . . . . . Heaviest Build 64 | 4 2 2 2 2 2 2 2 2 2 7 31 54 60 60 56 56 49 61 64 Greatest Support 81 | 20 20 3 3 3 20 3 3 3 3 60 41 63 61 70 78 78 81 79 79 Greatest Overweight (x) 1 | . . . . . . . . . . . . . . 1 . . . . . Average Overweight (x) . | . . . . . . . . . . . . . . . . . . . . Largest Inventory Capacity 10 | 8 5 5 5 5 5 5 5 5 5 5 5 10 10 10 10 10 10 10 10 Average Capacity 7 | 5 5 5 5 5 5 5 5 5 5 5 5 7 10 10 10 10 10 10 10 Most Carried 10 | 7 5 4 5 5 4 3 3 5 5 5 4 10 10 10 10 8 10 8 10 Average Carried 6 | 2 4 4 4 5 3 3 3 3 5 5 2 6 8 9 7 7 8 6 8 Final Capacity 10 | 5 5 5 5 5 5 5 5 5 5 5 5 10 10 10 10 10 10 10 10 Final Carried 10 | 4 4 4 5 5 3 3 3 5 5 5 2 8 10 10 7 7 8 6 10 Class Distribution -------------------- 41% | Scavenger-Sprinter 37% | Mutant 12% | Commander-Sprinter 6% | Sprinter Dominant Class ---------------- Mutant | -10/Materials Mutant | -10/Mines Mutant | -10/Exiles Mutant | -9/Mines Mutant | -8/Materials Mutant | -7/Factory Mutant | -7/DSF Mutant | -6/Factory Mutant | -5/Factory Mutant | -5/DSF Sprinter | -4/Factory Commander-Sprinter | -4/Extension Scavenger-Sprinter | -3/Research Scavenger-Sprinter | -3/Quarantine Scavenger-Sprinter | -2/Research Scavenger-Sprinter | -2/Testing Scavenger-Sprinter | -2/Section 7 Scavenger-Sprinter | -1/Access Scavenger-Sprinter | -1/Command Resources | -11 -10 -10 -10 -9 -8 -7 -7 -6 -5 -5 -4 -4 -3 -3 -2 -2 -2 -1 -1 ----------- Run | Scr Mat Min Exi Min Mat Fac DSF Fac Fac DSF Fac Ext Res Qua Res Tes Sec Acc Com Matter Collected 859 | 200 . . . . . . . . . . 58 289 90 . . 55 85 . 82 Remotely . | . . . . . . . . . . . . . . . . . . . . Salvage Created 1129 | . . . . . . . . . . . 89 656 125 . . . 36 . 223 Parts 39 | . . . . . . . . . . . 9 11 4 . . . 4 . 11 Haulers Intercepted 1 | . . . . . . . . . . . . . 1 . . . . . . Recyclers Shooed 4 | . . . . . . . . . . . . 4 . . . . . . . Parts Field Recycled . | . . . . . . . . . . . . . . . . . . . . Retrieved Matter . | . . . . . . . . . . . . . . . . . . . . Parts Self-Destructed . | . . . . . . . . . . . . . . . . . . . . Prevented . | . . . . . . . . . . . . . . . . . . . . Kills | -11 -10 -10 -10 -9 -8 -7 -7 -6 -5 -5 -4 -4 -3 -3 -2 -2 -2 -1 -1 ------- Run | Scr Mat Min Exi Min Mat Fac DSF Fac Fac DSF Fac Ext Res Qua Res Tes Sec Acc Com Combat Hostiles Destroyed 7 | . . . . . . . . . . . . 3 . . . . 1 . 3 Melee 4 | . . . . . . . . . . . . . . . . . 1 . 3 Cannons 2 | . . . . . . . . . . . . 2 . . . . . . . Classes Destroyed 9 | . . . . . . . . . . . 2 4 1 . . . . . 2 Worker 4 | . . . . . . . . . . . 3 1 . . . . . . . Builder 1 | . . . . . . . . . . . 1 . . . . . . . . Hauler 1 | . . . . . . . . . . . . . 1 . . . . . . Recycler 3 | . . . . . . . . . . . . 3 . . . . . . . Watcher 2 | . . . . . . . . . . . . 1 1 . . . . . . Swarmer 2 | . . . . . . . . . . . . 1 . . . . 1 . . Grunt 2 | . . . . . . . . . . . . 2 . . . . . . . Sentry 1 | . . . . . . . . . . . . . . . . . . . 1 Programmer 2 | . . . . . . . . . . . . . . . . . . . 2 Best Kill Streak 4 | . . . . . . . . . . . 4 3 1 . . . 1 . 1 Combat Bots Only 1 | . . . . . . . . . . . . 1 . . . . 1 . 1 Max Kills in Single Turn 1 | . . . . . . . . . . . 1 1 1 . . . 1 . 1 Gunslinging . | . . . . . . . . . . . . . . . . . . . . Exploded . | . . . . . . . . . . . . . . . . . . . . Melee 1 | . . . . . . . . . . . . . . . . . 1 . 1 Uniques/NPCs Destroyed . | . . . . . . . . . . . . . . . . . . . . Combat | -11 -10 -10 -10 -9 -8 -7 -7 -6 -5 -5 -4 -4 -3 -3 -2 -2 -2 -1 -1 -------- Run | Scr Mat Min Exi Min Mat Fac DSF Fac Fac DSF Fac Ext Res Qua Res Tes Sec Acc Com Damage Taken 4004 | . . 39 . . 298 . 155 . . 656 269 523 121 178 25 141 1022 . 577 Core 549 | . . 17 . . 44 . 54 . . 78 115 107 23 . . . 111 . . Absorbed by Shields 19 | . . . . . . . . . . . . . . . . . . . 19 Core Remaining (%) 92 | 100 . . . 93 92 . 92 100 . 92 . 80 . 98 . . 82 . 100 Volleys Fired 79 | . . . . . . . . . . . 8 49 20 2 . . . . . Largest 2 | . . . . . . . . . . . 1 2 1 1 . . . . . Hottest 113 | . . . . . . . . . . . 80 100 113 113 . . . . . Shots Fired 84 | . . . . . . . . . . . 8 54 20 2 . . . . . Gun 5 | . . . . . . . . . . . . 5 . . . . . . . Cannon 79 | . . . . . . . . . . . 8 49 20 2 . . . . . Launcher . | . . . . . . . . . . . . . . . . . . . . Special . | . . . . . . . . . . . . . . . . . . . . Kinetic 5 | . . . . . . . . . . . . 5 . . . . . . . Thermal 79 | . . . . . . . . . . . 8 49 20 2 . . . . . Explosive . | . . . . . . . . . . . . . . . . . . . . Electromagnetic . | . . . . . . . . . . . . . . . . . . . . Robot Hit Streak 14 | . . . . . . . . . . . 4 14 3 . . . . . . Robot Miss Streak 5 | . . . . . . . . . . . 2 5 1 . . . . . . Penetration Max . | . . . . . . . . . . . . . . . . . . . . Secondary Targets . | . . . . . . . . . . . . . . . . . . . . Shots Hit Robots 64 | . . . . . . . . . . . 5 37 7 . . . 2 2 11 Core Hits 26 | . . . . . . . . . . . 4 15 3 . . . 1 . 3 Critical Kills . | . . . . . . . . . . . . . . . . . . . . Critical Parts Destroyed . | . . . . . . . . . . . . . . . . . . . . Critical Strikes . | . . . . . . . . . . . . . . . . . . . . Melee Attacks 75 | . . . . . . . . 3 3 . . . . 4 1 5 17 15 27 Impact . | . . . . . . . . . . . . . . . . . . . . Slashing 75 | . . . . . . . . 3 3 . . . . 4 1 5 17 15 27 Piercing . | . . . . . . . . . . . . . . . . . . . . Sneak Attacks 3 | . . . . . . . . . . . . . . . . . 1 1 1 Combat Hostiles 1 | . . . . . . . . . . . . . . . . . . . 1 Follow-up Attacks . | . . . . . . . . . . . . . . . . . . . . Damage Inflicted 3306 | . . . . . 3 . . . . . 131 952 275 . . . 493 305 1147 Guns 49 | . . . . . . . . . . . . 49 . . . . . . . Cannons 1309 | . . . . . . . . . . . 131 903 275 . . . . . . Explosions . | . . . . . . . . . . . . . . . . . . . . Melee 1945 | . . . . . . . . . . . . . . . . . 493 305 1147 Ramming 3 | . . . . . 3 . . . . . . . . . . . . . . Kinetic 49 | . . . . . . . . . . . . 49 . . . . . . . Thermal 1309 | . . . . . . . . . . . 131 903 275 . . . . . . Explosive . | . . . . . . . . . . . . . . . . . . . . Electromagnetic . | . . . . . . . . . . . . . . . . . . . . Impact . | . . . . . . . . . . . . . . . . . . . . Slashing 1945 | . . . . . . . . . . . . . . . . . 493 305 1147 Piercing . | . . . . . . . . . . . . . . . . . . . . Highest Corruption 3 | . . . . . . . . 1 . . . . . . . . . . 3 Average Corruption 1 | . . . . . . . . 1 . . . . . . . . . . 2 Corruption Purged . | . . . . . . . . . . . . . . . . . . . . Effects 3 | . . . . . . . . 1 . . . . . . . . . . 2 Message Errors 1 | . . . . . . . . 1 . . . . . . . . . . . Matter Fused 1 | . . . . . . . . . . . . . . . . . . . 1 Data Loss (minor) 1 | . . . . . . . . . . . . . . . . . . . 1 Overload Shots . | . . . . . . . . . . . . . . . . . . . . Overflow Damage 873 | . . . . . . . . . . . . 23 20 . . . 257 180 393 Projectiles 43 | . . . . . . . . . . . . 23 20 . . . . . . Explosions . | . . . . . . . . . . . . . . . . . . . . Melee 830 | . . . . . . . . . . . . . . . . . 257 180 393 Knockbacks . | . . . . . . . . . . . . . . . . . . . . Impact . | . . . . . . . . . . . . . . . . . . . . Kinetic . | . . . . . . . . . . . . . . . . . . . . Secondary . | . . . . . . . . . . . . . . . . . . . . Self-Inflicted Damage . | . . . . . . . . . . . . . . . . . . . . Shots . | . . . . . . . . . . . . . . . . . . . . Rammed 1 | . . . . . 1 . . . . . . . . . . . . . . Targets Rammed 1 | . . . . . 1 . . . . . . . . . . . . . . Kicked . | . . . . . . . . . . . . . . . . . . . . Crushed . | . . . . . . . . . . . . . . . . . . . . Highest Temperature 190 | . . . . . . . . . . . 94 190 33 . . . 1 1 18 Average Temperature 39 | . . . . . . . . . . . 30 63 11 . . . 1 1 3 Received Heat Transfer 393 | . . 21 . . 99 . . . . 27 . 81 27 39 . . 36 . 63 Siege Activations . | . . . . . . . . . . . . . . . . . . . . Robots Corrupted . | . . . . . . . . . . . . . . . . . . . . Combat Hostiles . | . . . . . . . . . . . . . . . . . . . . Parts Fried . | . . . . . . . . . . . . . . . . . . . . Impact Corruptions . | . . . . . . . . . . . . . . . . . . . . Robots Melted 1 | . . . . . . . . . . . . 1 . . . . . . . Combat Hostiles 1 | . . . . . . . . . . . . 1 . . . . . . . Parts Melted 4 | . . . . . . . . . . . . 2 . . . . . . 2 Heat Transferred 2309 | . . . . . . . . . . . 250 1800 259 . . . . . . Parts Sabotaged . | . . . . . . . . . . . . . . . . . . . . Parts Stolen . | . . . . . . . . . . . . . . . . . . . . Parts Stripped . | . . . . . . . . . . . . . . . . . . . . Power Chain Reactions . | . . . . . . . . . . . . . . . . . . . . Missiles Intercepted . | . . . . . . . . . . . . . . . . . . . . Alert | -11 -10 -10 -10 -9 -8 -7 -7 -6 -5 -5 -4 -4 -3 -3 -2 -2 -2 -1 -1 ------- Run | Scr Mat Min Exi Min Mat Fac DSF Fac Fac DSF Fac Ext Res Qua Res Tes Sec Acc Com Peak Influence 2206 | . . 60 . . 99 44 34 86 48 33 63 335 413 1733 1142 1731 2206 1470 1281 Initial 1332 | . . . . . . 44 34 20 42 33 7 25 144 231 1100 642 1100 1332 940 Average 578 | . . 43 . . 57 44 29 56 45 11 39 209 282 1650 1131 1663 1851 1386 1068 Maximum Alert Level 5 | . . . . . . . . . . . . 1 2 5 4 5 5 4 4 Low Security (%) 45 | 100 100 100 . 100 100 100 100 100 100 100 100 30 33 . . . . . . Level 1 20 | . . . . . . . . . . . . 69 58 . . . . . . Level 2 . | . . . . . . . . . . . . . 8 . . . . . . Level 3 5 | . . . . . . . . . . . . . . . . . . . 61 Level 4 11 | . . . . . . . . . . . . . . . 100 . . 100 38 Level 5 . | . . . . . . . . . . . . . . . . . . . . High Security . | . . . . . . . . . . . . . . . . . . . . Max Security 17 | . . . . . . . . . . . . . . 99 . 99 99 . . Squads Dispatched 33 | . . . . . 1 . . 1 . . 2 2 3 6 . 6 8 3 1 Investigation 9 | . . . . . . . . 1 . . 1 2 2 . . . . 3 . Extermination . | . . . . . . . . . . . . . . . . . . . . Reinforcement 5 | . . . . . 1 . . . . . . . 1 . . . 2 . 1 Assault 19 | . . . . . . . . . . . 1 . . 6 . 6 6 . . Garrison . | . . . . . . . . . . . . . . . . . . . . Intercept . | . . . . . . . . . . . . . . . . . . . . Construction Impeded . | . . . . . . . . . . . . . . . . . . . . Haulers Reinforced . | . . . . . . . . . . . . . . . . . . . . Active Scanning Responses . | . . . . . . . . . . . . . . . . . . . . Cargo Convoy Interrupts . | . . . . . . . . . . . . . . . . . . . . Stealth | -11 -10 -10 -10 -9 -8 -7 -7 -6 -5 -5 -4 -4 -3 -3 -2 -2 -2 -1 -1 --------- Run | Scr Mat Min Exi Min Mat Fac DSF Fac Fac DSF Fac Ext Res Qua Res Tes Sec Acc Com Distress Signals 8 | . . . . . 1 . . . . . . 1 . . . . 3 . 3 Communications Jammed 24 | . . . . . . . . . . . . . 6 . . . . 18 . Distress Signals 24 | . . . . . . . . . . . . . 6 . . . . 18 . Times Spotted 158 | . 1 2 . . 11 . 1 2 . 2 . 31 6 16 4 4 59 5 14 Peak Tracking Total 29 | . 1 2 . . 10 . 1 1 . 2 . 13 3 14 4 8 29 5 7 Tactical Retreats 20 | . . 1 . . . . 1 . . 1 . . 3 2 . 3 5 1 3 Traps | -11 -10 -10 -10 -9 -8 -7 -7 -6 -5 -5 -4 -4 -3 -3 -2 -2 -2 -1 -1 ------- Run | Scr Mat Min Exi Min Mat Fac DSF Fac Fac DSF Fac Ext Res Qua Res Tes Sec Acc Com Traps Triggered 6 | . . . . . . . . . . 2 1 1 1 . . . . . 1 Indirectly . | . . . . . . . . . . . . . . . . . . . . Trap Hack Attempts . | . . . . . . . . . . . . . . . . . . . . Triggered . | . . . . . . . . . . . . . . . . . . . . Disarmed . | . . . . . . . . . . . . . . . . . . . . Reprogrammed . | . . . . . . . . . . . . . . . . . . . . Reused . | . . . . . . . . . . . . . . . . . . . . Traps Extracted . | . . . . . . . . . . . . . . . . . . . . Installed . | . . . . . . . . . . . . . . . . . . . . Triggered . | . . . . . . . . . . . . . . . . . . . . Machines | -11 -10 -10 -10 -9 -8 -7 -7 -6 -5 -5 -4 -4 -3 -3 -2 -2 -2 -1 -1 ---------- Run | Scr Mat Min Exi Min Mat Fac DSF Fac Fac DSF Fac Ext Res Qua Res Tes Sec Acc Com Machines Disabled 9 | . . . . . . . . . . . 1 . 1 2 . 3 2 . . Max in Single Turn 1 | . . . . . . . . . . . 1 . 1 1 . 1 1 . . Garrison Access 1 | . . . . . . . . . . . 1 . . . . . . . . Machines Sabotaged . | . . . . . . . . . . . . . . . . . . . . Garrisons Compromised . | . . . . . . . . . . . . . . . . . . . . Overloaded Fab Kills . | . . . . . . . . . . . . . . . . . . . . Hacking | -11 -10 -10 -10 -9 -8 -7 -7 -6 -5 -5 -4 -4 -3 -3 -2 -2 -2 -1 -1 --------- Run | Scr Mat Min Exi Min Mat Fac DSF Fac Fac DSF Fac Ext Res Qua Res Tes Sec Acc Com Machines Accessed 27 | . . . 1 . 2 2 . 4 1 . 2 4 4 . 1 . . 4 2 Terminals 24 | . . . . . 2 2 . 4 1 . 1 4 3 . 1 . . 4 2 Fabricators . | . . . . . . . . . . . . . . . . . . . . Repair Stations 1 | . . . . . . . . . . . . . 1 . . . . . . Recycling Units . | . . . . . . . . . . . . . . . . . . . . Scanalyzers . | . . . . . . . . . . . . . . . . . . . . Garrison Access 1 | . . . . . . . . . . . 1 . . . . . . . . Total Hacks 57 | . . . 1 . 4 3 . 9 1 . 5 10 10 . 2 . . 8 4 Successful 24 | . . . 1 . 2 1 . 3 1 . 1 4 6 . 1 . . 2 2 Failed 33 | . . . . . 2 2 . 6 . . 4 6 4 . 1 . . 6 2 Catastrophic 8 | . . . . . 1 1 . 3 . . . . . . . . . 3 . Database Lockouts . | . . . . . . . . . . . . . . . . . . . . Manual 20 | . . . 1 . 4 2 . 6 . . . . 3 . . . . 2 2 Terminals 51 | . . . . . 4 3 . 9 1 . 2 10 8 . 2 . . 8 4 Fabricators . | . . . . . . . . . . . . . . . . . . . . Repair Stations 2 | . . . . . . . . . . . . . 2 . . . . . . Recycling Units . | . . . . . . . . . . . . . . . . . . . . Scanalyzers . | . . . . . . . . . . . . . . . . . . . . Garrison Access 3 | . . . . . . . . . . . 3 . . . . . . . . Terminal Hacks 17 | . . . 1 . 1 1 . 1 1 . 1 4 3 . 1 . . 2 1 Open Door 4 | . . . . . . . . . . . . 2 . . . . . 2 . Open DSF 2 | . . . . . . 1 . . 1 . . . . . . . . . . Level Access Points 4 | . . . . . 1 . . 1 . . . . 1 . . . . . 1 Branch Access Points 2 | . . . . . . . . . . . . . 1 . 1 . . . . Terminal Index 2 | . . . . . . . . . . . 1 . 1 . . . . . . Locate Traps 1 | . . . . . . . . . . . . 1 . . . . . . . Zone Layout 1 | . . . . . . . . . . . . 1 . . . . . . . EX-Prototype ID Bank 1 | . . . 1 . . . . . . . . . . . . . . . . Fabricator Hacks . | . . . . . . . . . . . . . . . . . . . . Repair Station Hacks 2 | . . . . . . . . . . . . . 2 . . . . . . Scan Component 1 | . . . . . . . . . . . . . 1 . . . . . . Repair 1 | . . . . . . . . . . . . . 1 . . . . . . Recycling Unit Hacks . | . . . . . . . . . . . . . . . . . . . . Scanalyzer . | . . . . . . . . . . . . . . . . . . . . Garrison Access Hacks . | . . . . . . . . . . . . . . . . . . . . Unauthorized Hacks 5 | . . . . . 1 . . 2 . . . . 1 . . . . . 1 Terminals 5 | . . . . . 1 . . 2 . . . . 1 . . . . . 1 Botnet 5 | . . . . . 1 . . 2 . . . . 1 . . . . . 1 Fabricators . | . . . . . . . . . . . . . . . . . . . . Repair Stations . | . . . . . . . . . . . . . . . . . . . . Recycling Units . | . . . . . . . . . . . . . . . . . . . . Scanalyzers . | . . . . . . . . . . . . . . . . . . . . Garrison Access . | . . . . . . . . . . . . . . . . . . . . Data Cores Recovered . | . . . . . . . . . . . . . . . . . . . . Used . | . . . . . . . . . . . . . . . . . . . . Hacking Detections 22 | . . . . . 1 2 . 3 . . 2 4 4 . 1 . . 3 2 Full Trace Events 8 | . . . . . 1 . . 1 . . 1 1 1 . . . . 3 . Feedback Events 1 | . . . . . . . . 1 . . . . . . . . . . . Corruption 1 | . . . . . . . . 1 . . . . . . . . . . . Feedback Blocked . | . . . . . . . . . . . . . . . . . . . . Robot Schematics Acquired . | . . . . . . . . . . . . . . . . . . . . Robots Built . | . . . . . . . . . . . . . . . . . . . . Authchips . | . . . . . . . . . . . . . . . . . . . . Time . | . . . . . . . . . . . . . . . . . . . . Total Robot Build Rating . | . . . . . . . . . . . . . . . . . . . . Part Schematics Acquired . | . . . . . . . . . . . . . . . . . . . . Parts Built . | . . . . . . . . . . . . . . . . . . . . Authchips . | . . . . . . . . . . . . . . . . . . . . Time . | . . . . . . . . . . . . . . . . . . . . Total Part Build Rating . | . . . . . . . . . . . . . . . . . . . . Parts Repaired 1 | . . . . . . . . . . . . . 1 . . . . . . Time 20 | . . . . . . . . . . . . . 20 . . . . . . Parts Recycled . | . . . . . . . . . . . . . . . . . . . . Recycled Matter . | . . . . . . . . . . . . . . . . . . . . Retrieved Matter . | . . . . . . . . . . . . . . . . . . . . Retrieved Components . | . . . . . . . . . . . . . . . . . . . . Parts Scanalyzed . | . . . . . . . . . . . . . . . . . . . . Part Schematics Acquired . | . . . . . . . . . . . . . . . . . . . . Parts Damaged . | . . . . . . . . . . . . . . . . . . . . Bothacking | -11 -10 -10 -10 -9 -8 -7 -7 -6 -5 -5 -4 -4 -3 -3 -2 -2 -2 -1 -1 ------------ Run | Scr Mat Min Exi Min Mat Fac DSF Fac Fac DSF Fac Ext Res Qua Res Tes Sec Acc Com Used RIF Installer . | . . . . . . . . . . . . . . . . . . . . Robots Hacked . | . . . . . . . . . . . . . . . . . . . . Non-combat . | . . . . . . . . . . . . . . . . . . . . Combat . | . . . . . . . . . . . . . . . . . . . . Robot Hacks Applied . | . . . . . . . . . . . . . . . . . . . . Relay Couplers Released 2 | . . . . . . . . . . . 2 . . . . . . . . Machine Destruction 2 | . . . . . . . . . . . 2 . . . . . . . . Fabnet Peak Effective % . | . . . . . . . . . . . . . . . . . . . . Robots Rewired 6 | . . . . . . . . . . . . 6 . . . . . . . Allies Hacked . | . . . . . . . . . . . . . . . . . . . . Hacks Repelled . | . . . . . . . . . . . . . . . . . . . . Allies | -11 -10 -10 -10 -9 -8 -7 -7 -6 -5 -5 -4 -4 -3 -3 -2 -2 -2 -1 -1 -------- Run | Scr Mat Min Exi Min Mat Fac DSF Fac Fac DSF Fac Ext Res Qua Res Tes Sec Acc Com Total Allies 12 | . . 3 . . . . . . . . . 9 . . . . . . . Largest Group 7 | . . 3 2 . . . . . . . . 7 . . . . . . . Highest-Rated Group 281 | . . 40 32 . . . . . . . . 281 . . . . . . . Highest-Rated Ally 46 | . . 16 16 . . . . . . . . 46 . . . . . . . Total Orders . | . . . . . . . . . . . . . . . . . . . . Ally Attacks 71 | . . 13 . . . . . . . . . 58 . . . . . . . Total Damage 1766 | . . 169 . . . . . . . . . 1597 . . . . . . . Kills 13 | . . 2 . . . . . . . . . 11 . . . . . . . Allies Corrupted . | . . . . . . . . . . . . . . . . . . . . Allies Melted . | . . . . . . . . . . . . . . . . . . . . Intel | -11 -10 -10 -10 -9 -8 -7 -7 -6 -5 -5 -4 -4 -3 -3 -2 -2 -2 -1 -1 ------- Run | Scr Mat Min Exi Min Mat Fac DSF Fac Fac DSF Fac Ext Res Qua Res Tes Sec Acc Com Robot Analysis Total . | . . . . . . . . . . . . . . . . . . . . Derelict Logs Recovered 1 | . . 1 . . . . . . . . . . . . . . . . . Drone Launches . | . . . . . . . . . . . . . . . . . . . . Drone Recoveries . | . . . . . . . . . . . . . . . . . . . . Exploration | -11 -10 -10 -10 -9 -8 -7 -7 -6 -5 -5 -4 -4 -3 -3 -2 -2 -2 -1 -1 ------------- Run | Scr Mat Min Exi Min Mat Fac DSF Fac Fac DSF Fac Ext Res Qua Res Tes Sec Acc Com Turns Passed 2743 | 10 33 140 108 55 113 13 42 340 33 56 115 615 182 151 65 118 184 152 218 Spaces Moved 5659 | 5 48 229 213 109 214 25 77 630 42 95 257 881 534 518 184 249 523 307 519 Core 1622 | 3 47 229 213 109 213 25 77 630 42 34 . . . . . . . . . Treads 4 | . 1 . . . 1 . . . . 2 . . . . . . . . . Legs 2 | 2 . . . . . . . . . . . . . . . . . . . Wheels . | . . . . . . . . . . . . . . . . . . . . Hover . | . . . . . . . . . . . . . . . . . . . . Flight 4031 | . . . . . . . . . . 59 257 881 534 518 184 249 523 307 519 Fastest Speed 15 | 50 50 50 50 50 50 50 50 50 50 34 28 19 15 16 18 18 18 19 19 Average Speed 29 | 78 52 50 50 50 50 50 50 50 50 45 29 23 15 20 18 18 19 19 19 Slowest Speed 160 | 120 160 50 50 50 160 50 50 50 50 160 34 28 16 104 18 18 23 19 22 Overloaded Moves . | . . . . . . . . . . . . . . . . . . . . Propulsion Burnouts . | . . . . . . . . . . . . . . . . . . . . Robots Hopped 67 | . . . . . . . . . . 1 . 31 5 6 3 . 15 . 6 Cave-ins Triggered . | . . . . . . . . . . . . . . . . . . . . Exploration Rate (%) 33 | 2 18 52 62 44 39 2 71 17 2 81 7 67 19 66 5 41 35 8 22 Regions Visited 19 Branch Regions 8 Pre-discovered Areas . | . . . . . . . . . . . . . . . . . . . . Known Exits Taken 7 | . . . . . 1 1 . 1 1 . . . 1 1 1 . . . . Unknown Exits Taken 10 | 1 1 1 1 1 . . . . . . 1 1 . . . 1 1 1 . Scrap Searched . | . . . . . . . . . . . . . . . . . . . . Spaces Dug 54 | . . . . . . . . 2 3 . . . 8 4 1 2 12 9 13 Terrain Destroyed 58 | . . . . . . . . 2 3 . . . 12 4 1 2 12 9 13 Melee 46 | . . . . . . . . 2 3 . . . . 4 1 2 12 9 13 Projectile 12 | . . . . . . . . . . . . . 12 . . . . . . AOE . | . . . . . . . . . . . . . . . . . . . . Terrain Rammed . | . . . . . . . . . . . . . . . . . . . . Walls Destroyed . | . . . . . . . . . . . . . . . . . . . . Machines Disabled . | . . . . . . . . . . . . . . . . . . . . Actions | -11 -10 -10 -10 -9 -8 -7 -7 -6 -5 -5 -4 -4 -3 -3 -2 -2 -2 -1 -1 --------- Run | Scr Mat Min Exi Min Mat Fac DSF Fac Fac DSF Fac Ext Res Qua Res Tes Sec Acc Com Total 6430 | 14 55 253 213 108 217 25 79 649 49 103 284 1203 610 545 211 311 557 369 575 Wait 500 | . 3 25 . . . . . 3 4 . 8 237 43 11 21 56 19 46 24 Move 5530 | 4 47 228 212 108 213 25 76 629 42 92 256 829 523 507 177 248 499 306 509 Hop 44 | . . . . . . . . . . 1 . 20 5 4 3 . 8 . 3 Pick Up 29 | 1 . . 1 . . . . 1 . . 1 8 6 3 . 1 3 . 4 Fast Attach 45 | 1 2 . . . 1 . 1 6 . 6 6 7 3 5 2 . 3 . 2 Attach 22 | . . . . . 2 . . 2 . . 3 2 3 1 3 1 2 2 1 Detach 18 | 3 1 . . . . . . 5 . 1 1 2 1 1 2 . 1 . . Swap 4 | . . . . . . . . . . . . 1 1 . . . 2 . . Drop 31 | 5 2 . . . . . . . . 1 1 4 5 7 2 . 3 . 1 Fire 79 | . . . . . . . . . . . 8 49 20 2 . . . . . Melee 75 | . . . . . . . . 3 3 . . . . 4 1 5 17 15 27 Ram . | . . . . . . . . . . . . . . . . . . . . Kick . | . . . . . . . . . . . . . . . . . . . . Crush 1 | . . . . . 1 . . . . . . . . . . . . . . Escape Stasis 11 | . . . . . . . . . . 2 . 5 . . . . . . 4 Rewire 41 | . . . . . . . 2 . . . . 39 . . . . . . . Trap . | . . . . . . . . . . . . . . . . . . . . Miscellaneous . | . . . . . . . . . . . . . . . . . . . . Route ------- -11/Scrapyard -10/Materials -10/Mines -10/Exiles -9/Mines -8/Materials (discovered 3 exits: *Fac x3) -7/Factory -7/DSF -6/Factory (discovered 4 exits: *Fac x4) -5/Factory -5/DSF -4/Factory -4/Extension (discovered 2 exits: *Res / [*Cet]) -3/Research (discovered 5 exits: Res x3 / *Qua x2) -3/Quarantine -2/Research (discovered 2 exits: *Tes x2) -2/Testing -2/Section 7 -1/Access -1/Command (discovered 2 exits: *Sur x2) To Fleet Rendezvous History --------- Turn | Location | Event 4 | -11/Scrapyard | Discovered new exit (range 2) 11 | -11/Scrapyard | Entered Materials 39 | -10/Materials | Discovered new exit (range 9) 44 | -10/Materials | Entered Mines 54 | -10/Mines | Learned Materials garrison access intel 70 | -10/Mines | Assisted by bots powering up and referring to "LRC-V3" 157 | -10/Mines | Deemed a non-threat by the Exiles lab entrance 157 | -10/Mines | Discovered new exit (range 5) 184 | -10/Mines | Entered Exiles 184 | -10/Exiles | Accompanied by 2 allies 198 | -10/Exiles | Met 8R-AWN 205 | -10/Exiles | Met EX-HEX 219 | -10/Exiles | Met EX-BIN 226 | -10/Exiles | Aligned with FarCom system 227 | -10/Exiles | Given EX-Vault access code 239 | -10/Exiles | Opened EX-Vault 241 | -10/Exiles | Found Chronowheel 253 | -10/Exiles | Warned to stay clear of 0b10 Research branches 261 | -10/Exiles | Exiles lab attacked by MAIN.C 288 | -10/Exiles | Discovered new exit (range 10) 292 | -10/Exiles | Left Exiles lab with Chronowheel 292 | -10/Exiles | Entered Mines 308 | -9/Mines | Build established: Mutant 343 | -9/Mines | Discovered new exit (range 9) 347 | -9/Mines | Received a Mining Laser from a helpful Derelict 347 | -9/Mines | Entered Materials 347 | -8/Materials | Evolved 4 slots: Propulsion x4 348 | -8/Materials | Loaded intel: 1 garrison access location 368 | -8/Materials | Identified exit to Factory 460 | -8/Materials | Entered Factory 460 | -7/Factory | Evolved 2 slots: Propulsion x1, Utility x1 473 | -7/Factory | Identified exit to DSF 473 | -7/Factory | Entered DSF 493 | -7/DSF | Additional patrols routed to DSF 499 | -7/DSF | Discovered new exit (range 14) 515 | -7/DSF | Entered Factory 515 | -6/Factory | Evolved 2 slots: Propulsion x1, Utility x1 572 | -6/Factory | Activated Chronowheel 840 | -6/Factory | Discovered new exit (range 13) 843 | -6/Factory | Identified exit to Factory 855 | -6/Factory | Entered another Factory area 855 | -5/Factory | Evolved 2 slots: Utility x2 888 | -5/Factory | Identified exit to DSF 888 | -5/Factory | Entered DSF 911 | -5/DSF | Additional patrols routed to DSF 933 | -5/DSF | Discovered new exit (range 16) 944 | -5/DSF | Entered Factory 944 | -4/Factory | Evolved 2 slots: Power x1, Propulsion x1 948 | -4/Factory | Lost 6 parts (5n1w) 1055 | -4/Factory | Discovered new exit (range 13) 1059 | -4/Factory | Entered Extension 1071 | -4/Extension | Rescued a captive Derelict 1085 | -4/Extension | Rescued a captive Derelict 1086 | -4/Extension | Rescued a captive Derelict 1309 | -4/Extension | Disrupted transfer network 1522 | -4/Extension | Build established: Commander-Sprinter 1636 | -4/Extension | Spotted B-86 Titan 1642 | -4/Extension | Spotted B-86 Titan 1671 | -4/Extension | Discovered new exit (range 16) 1671 | -4/Extension | Discovered new exit (range 15) 1674 | -4/Extension | Entered Research 1674 | -3/Research | Evolved 2 slots: Propulsion x1, Utility x1 1710 | -3/Research | Repaired Impulse Thruster 1736 | -3/Research | Identified exit to Research 1819 | -3/Research | Found Enh. Force Lance 1835 | -3/Research | Identified exit to Quarantine 1856 | -3/Research | Entered Quarantine 1857 | -3/Quarantine | Maximum security lockdown engaged 1871 | -3/Quarantine | Found Alien Artifact 1884 | -3/Quarantine | Found Fusion Bomb Launcher 1892 | -3/Quarantine | Found Alien Slashing Weapon 1892 | -3/Quarantine | Identified Sigix Broadsword 1964 | -3/Quarantine | Found Alien Artifact 1964 | -3/Quarantine | Identified Core Reset Matrix 1964 | -3/Quarantine | Identified Subatomic Replicator 1964 | -3/Quarantine | Used Core Reset Matrix 1968 | -3/Quarantine | Detected hypermatrix surge 1968 | -3/Quarantine | Sensed 15 artifacts in vicinity 2004 | -3/Quarantine | Discovered exit to Research (range 7) 2007 | -3/Quarantine | Entered Research 2007 | -2/Research | Evolved 2 slots: Propulsion x1, Utility x1 2028 | -2/Research | Spotted B-90 Cyclops 2030 | -2/Research | Identified exit to Testing 2043 | -2/Research | Build established: Scavenger-Sprinter 2072 | -2/Research | Entered Testing 2073 | -2/Testing | Maximum security lockdown engaged 2088 | -2/Testing | Found Portable AFG 2122 | -2/Testing | Spotted Fortress 2141 | -2/Testing | Discovered new exit (range 6) 2190 | -2/Testing | Entered Section 7 2191 | -2/Section 7 | Maximum security lockdown engaged 2191 | -2/Section 7 | Sensed 23 artifacts in vicinity 2206 | -2/Section 7 | Found Integrity Redistributor 2206 | -2/Section 7 | Used Integrity Redistributor, redistributed integrity from core (-84) 2212 | -2/Section 7 | Spotted B-90 Cyclops 2217 | -2/Section 7 | Spotted S7 Guard 2223 | -2/Section 7 | Spotted B-90 Cyclops 2231 | -2/Section 7 | Found Integrity Redistributor 2245 | -2/Section 7 | Spotted Alpha 7 2245 | -2/Section 7 | Spotted Alpha 7 2368 | -2/Section 7 | Used Subatomic Replicator to replicate Integrity Redistributor 2369 | -2/Section 7 | Used Integrity Redistributor, redistributed integrity from core (-61) 2373 | -2/Section 7 | Discovered new exit (range 7) 2373 | -2/Section 7 | Spotted Striker 2374 | -2/Section 7 | Entered Access 2374 | -1/Access | Evolved 2 slots: Power x1, Utility x1 2490 | -1/Access | Discovered new exit (range 5) 2526 | -1/Access | Entered Command 2616 | -1/Command | Identified exit to Surface 2738 | -1/Command | Spotted Striker 2738 | -1/Command | Spotted Executioner 2738 | -1/Command | Spotted Executioner 2738 | -1/Command | Spotted B-99 Colossus 2738 | -1/Command | Spotted B-99 Colossus 2738 | -1/Command | Spotted Alpha 7 2743 | -1/Command | Spotted Executioner 2744 | *** | Heading to fleet! Last Messages --------------- 02709_ Dropped Portable AFG. 02710_ Acquired Q-thruster. 02711_ Portable AFG generating attraction field. 02739_ Access Shell breached. 02739_ Knocked back. 02739_ Penetrated by Slug. 02739_ Slug penetrates Wall. 02739_ Slug penetrates Access Shell. 02739_ Triggered Stasis Trap. 02739_ A bubble of rippling energy engulfs the area. 02739_ Field strength at 85. 02739_ Field strength at 70. 02740_ Field strength at 55. 02741_ Field strength at 40. 02742_ Field strength at 25. 02742_ Penetrated by Slug. 02742_ Slug penetrates Wall. 02742_ Slug penetrates Access Shell. 02743_ The unstable cave ceiling collapses. 02743_ Stasis field depleted. Map ----- +----------------------------------------------------+ | # #?????????????????????????????????????????????? | | # #####?????????????????????????????????????????? | | # ##%##########????????????????????????????????? | | # # =&== #????????????????????????????????? | | # # =[== #????????????????????????????????? | | # # == #????????????????????????????????? | | # # #????????????????????????????????? | | # # #????????????????????????????????? | | # # #????????????????????????????????? | | # + #????????????????????????????????? | | # # #????????????????????????????????? | | # # #????????????????????????????????? | | # ##???????????????????????????????? | | # "T" #???????????????????????????????? | | # """ ##??????????????????????????????? | | ############## ##?????????????????????????????? | | #????????????## ##????????????????????????????? | | #?????????????## ##???????????????????????????? | | #??????????????#####??????????????????????????? | | #??????????????### ###########????????????????? | | #??????????????# #????????????????? | | #??????????????#BB #?????????????????? | | ## #???????7?K?E#E# #?????????????????? | | ?# #??????? K ""%"" #?????????????????? | | ?# #????+ ^ ^ " % "? #?????????????????? | | ?# #??? + E " "@ "???#?????????????????? | | ## #### +? 7 " "" "?????????????????????? | | +? " "?????????????????????? | | #########? """"""?????????????????????? | | #??# # #E# ???????????????????????????? | | #????#######BB ???????????????????????????? | | #??????????#BB ???????????????????????????? | | ###????????####???????????????????????????? | | ""#???????????????????????????????????????? | | ""#???????????????????????????????????????? | | ""#???????????????????????????????????????? | | T#???????????????????????????????????????? | | ""#???????????????????????????????????????? | | ""#???????????????????????????????????????? | | ""#???????????????????????????????????????? | | ###???????????????????????????????????????? | | !! #?????????????????????????????????????????? | | !!! #?????????????????????????????????????????? | | !!! #?????????????????????????????????????????? | | #?????????????????????????????????????????? | | #?????????????????????????????????????????? | | ########?????????????????????????????????????????? | | ?????????????????????????????????????????????????? | | ?????????????????????????????????????????????????? | | ?????????????????????????????????????????????????? | +----------------------------------------------------+ Best States ------------- Heat Dissipation 109 Coolant Potential 100 Energy Generation 47 Energy Capacity 290 Matter Stores 300 Matter Capacity 300 Sight Range 16 Terrain Scan Density 210 Jamming Range 16 Armor Coverage 225 Core Shielding 30 Evasion (%) 67 Melee Accuracy 18 Offensive Hacking 10 Authchip Count 1 Item Schematics ----------------- None Robot Schematics ------------------ None Fabricated ------------ Nothing Alien Tech Used ----------------- Sigix Broadsword Core Reset Matrix Integrity Redistributor Subatomic Replicator Achievements -------------- None Challenges ------------ None Game ------ Seed StormLightStabilizer Manual? 1 Play Time 00:53:51 Cumulative 569.1 hours Start 2021.12.28 @ 11:19:30 End 2021.12.28 @ 12:10:54 Sessions 1 Manual Loads 0 Difficulty Rogue Special Mode Winter2021/Sauler Game No. 251 Rogue 250 Adventurer 1 Explorer 0 Win Type 2 Total 49 Types 13/6/8/3/1/0/17/1/0 Lore% 95 Gallery% 98 Achievement% 86 Wizard Run 0 Options --------- ASCII 1 Keyboard 1 Movement Numpad Keybinds 0 Fullscreen 0 Font 18/Smallcaps Map View 76x50 Tactical HUD 1 Map Filters NONE Filters NONE Steam 1 RUN: 5c86e6d2-dab8-4670-8eef-9a5d8587267f